Posting Date,Expenditure Area,Supplier Name,Amount,Expense Type,Reason for Expense
02-Aug-19,Culture & Environment Services,Aldi 89 776,3.07, Materials and Supplies - Miscellaneous ,Coffee & Sugar - Education Rm - Christchurch Park
01-Aug-19,Culture & Environment Services,Amazon.Co.Uk,6.22, Equipment / Furniture / Materials ,"Laminating pouches, coloured card and cd's"
01-Aug-19,Culture & Environment Services,Amazon.Co.Uk,12.32, Equipment / Furniture / Materials ,"Laminating pouches, coloured card and cd's"
28-Aug-19,Culture & Environment Services,Amazon.Co.Uk,9.69, Equipment / Furniture / Materials ,Litter Picker
27-Aug-19,Culture & Environment Services,Amazon.Co.Uk,39.42, Fixtures & Fittings ,Padlock & Chain
15-Aug-19,Culture & Environment Services,Amazon.Co.Uk,19.42, Materials and Supplies - Miscellaneous ,Biohazard body spills kits
21-Aug-19,Culture & Environment Services,Amherst Enterprises Lt,214.00, Equipment Hire ,Hire of 10 x Megaphones - Ed Sheeran Concerts
02-Aug-19,Culture & Environment Services,Amznmktplace,18.67, Cleaning Supplies ,radar keys for shopmo
30-Aug-19,Culture & Environment Services,Amznmktplace,14.99, Cleaning Supplies ,Hand cleaning gel
22-Aug-19,Culture & Environment Services,Amznmktplace,4.15, Clothing / Uniform & Laundry ,2 packs of shirts for crem.
07-Aug-19,Culture & Environment Services,Amznmktplace,6.91, Equipment / Furniture / Materials ,Milk Sachets for bearers
12-Aug-19,Culture & Environment Services,Amznmktplace,6.66, Equipment / Furniture / Materials ,DOUBLE SIDED TAPE FOR FRAMES
15-Aug-19,Culture & Environment Services,Amznmktplace,3.32, Equipment / Furniture / Materials ,Christmas parties
15-Aug-19,Culture & Environment Services,Amznmktplace,4.92, Equipment / Furniture / Materials ,Christmas parties
15-Aug-19,Culture & Environment Services,Amznmktplace,19.98, Equipment / Furniture / Materials ,Plastic water juggs
16-Aug-19,Culture & Environment Services,Amznmktplace,0.49, Equipment / Furniture / Materials ,Christmas Parties
16-Aug-19,Culture & Environment Services,Amznmktplace,2.57, Equipment / Furniture / Materials ,Christmas parties
16-Aug-19,Culture & Environment Services,Amznmktplace,5.82, Equipment / Furniture / Materials ,Christmas parties
21-Aug-19,Culture & Environment Services,Amznmktplace,53.32, Equipment / Furniture / Materials ,Purchase of new tools for the Regent Theatre
21-Aug-19,Culture & Environment Services,Amznmktplace,63.32, Equipment / Furniture / Materials ,Purchase of new tools for the Regent Theatre
28-Aug-19,Culture & Environment Services,Amznmktplace,66.63, Equipment / Furniture / Materials ,Purchase of Makita Impact driver bodies for Regent Theatre
09-Aug-19,Culture & Environment Services,Amznmktplace,13.62, Materials and Supplies - Miscellaneous ,Fireman Keys
07-Aug-19,Culture & Environment Services,Amznmktplace Amazon.Co.Uk,36.65, Equipment / Furniture / Materials ,Christmas Parties
15-Aug-19,Culture & Environment Services,Amznmktplace Amazon.Co.Uk,15.75, Materials and Supplies - Miscellaneous ,Labels for HWP Stables /reception
01-Aug-19,Culture & Environment Services,Argos Ltd,24.99, Equipment / Furniture / Materials ,FOH Fan
07-Aug-19,Culture & Environment Services,Argos Ltd,30.00, Miscellaneous Stock  - Purchases ,Hozelock - CHRISTCHURCH PARK
06-Aug-19,Culture & Environment Services,Argos Retail Group,13.33, Cleaning Supplies ,"Extensions leads, shredder and dustpan/brushes."
06-Aug-19,Culture & Environment Services,Argos Retail Group,44.14, Equipment / Furniture / Materials ,"Extensions leads, shredder and dustpan/brushes."
16-Aug-19,Culture & Environment Services,B & M Retail,1.66, Equipment / Furniture / Materials ,Glass jar for kiosk
29-Aug-19,Culture & Environment Services,B & M Retail,3.33, Equipment / Furniture / Materials ,Air fresheners for the toilets
21-Aug-19,Culture & Environment Services,B & Q 1237,241.67, Materials and Supplies - Miscellaneous ,Paint and equipment for Regent Theatre Dressing Rooms
30-Aug-19,Culture & Environment Services,B & Q 1237,66.67, Materials and Supplies - Miscellaneous ,Purchase of paint for the Regent Theatre Dressing Rooms
01-Aug-19,Culture & Environment Services,B & Q 1315,5.12, Materials and Supplies - Miscellaneous ,2 x Hex Bolts
09-Aug-19,Culture & Environment Services,B & Q 1315,23.07, Materials and Supplies - Miscellaneous ,Plant food and 3x 35l of topsoil
19-Aug-19,Culture & Environment Services,B & Q 1315,73.33, Materials and Supplies - Miscellaneous ,Hammerite - MADE IN SUFFOLK
22-Aug-19,Culture & Environment Services,B & Q 1315,107.94, Materials and Supplies - Miscellaneous ,Paint and equipment for Regent Theatre Dressing Rooms
28-Aug-19,Culture & Environment Services,B & Q 1315,19.78, Materials and Supplies - Miscellaneous ,2x coldlay rep & 3 x cable ties
01-Aug-19,Culture & Environment Services,B & Q 1315,34.17, Miscellaneous Stock  - Purchases ,Paint & Brushes - HORNDON ON THE HILL
05-Aug-19,Culture & Environment Services,B & Q 1315,127.88, Miscellaneous Stock  - Purchases ,Brush Set & woodstain - JUBILEE PARK PLAY AREA
08-Aug-19,Culture & Environment Services,B & Q 1315,102.75, Miscellaneous Stock  - Purchases ,Rapid cement - HORNDON ON THE HILL
12-Aug-19,Culture & Environment Services,B & Q 1315,136.61, Miscellaneous Stock  - Purchases ,Rapid Cement & wood filler - HORNDON ON THE HILL
13-Aug-19,Culture & Environment Services,B & Q 1315,101.50, Miscellaneous Stock  - Purchases ,25k rapid Cement - HORNDON ON THE HILL
13-Aug-19,Culture & Environment Services,B & Q 1315,70.00, Miscellaneous Stock  - Purchases ,Rapid cement - HORNDON ON THE HILL
14-Aug-19,Culture & Environment Services,B & Q 1315,128.47, Miscellaneous Stock  - Purchases ,25k Rapid Cement - HORNDON ON THE HILL
19-Aug-19,Culture & Environment Services,B & Q 1315,48.21, Miscellaneous Stock  - Purchases ,Rapid Cement - JUBILEE PARK PLAY AREA
26-Aug-19,Culture & Environment Services,B & Q 1315,121.80, Miscellaneous Stock  - Purchases ,maple park cement
29-Aug-19,Culture & Environment Services,B & Q 1315,42.57, Miscellaneous Stock  - Purchases ,Build Sand - JUBILEE PARK PLAY AREA - Landscape Team
29-Aug-19,Culture & Environment Services,B&q Direct,54.76, Fixtures & Fittings ,Padlocks and chain for field and entry gates.
05-Aug-19,Culture & Environment Services,Bag Agg Ltd,28.80, Miscellaneous Stock  - Purchases ,aggregate for Thurrock hordon on hill
30-Aug-19,Culture & Environment Services,Bag Agg Ltd,52.60, Miscellaneous Stock  - Purchases ,Ballast - JUBILEE PARK PLAY AREA - Landscape Team
02-Aug-19,Culture & Environment Services,Baker Ross,31.06, Equipment / Furniture / Materials ,Arts and Crafts - Summer Holidays
13-Aug-19,Culture & Environment Services,Booker Limited Ipswich,158.22, Catering/Beverages ,items for sports centres packed kunches
16-Aug-19,Culture & Environment Services,Booker Limited Ipswich,147.04, Catering/Beverages ,Items for sports centres packed lunches
09-Aug-19,Culture & Environment Services,British Cycling Fe,20.83, Miscellaneous Expenses ,Crafted Refunds
09-Aug-19,Culture & Environment Services,British Cycling Fe,20.83, Miscellaneous Expenses ,Crafted Refunds
09-Aug-19,Culture & Environment Services,British Cycling Fe,20.83, Miscellaneous Expenses ,Crafted Refunds
09-Aug-19,Culture & Environment Services,British Cycling Fe,20.83, Miscellaneous Expenses ,Crafted Refunds
09-Aug-19,Culture & Environment Services,British Cycling Fe,20.83, Miscellaneous Expenses ,Crafted Refunds
09-Aug-19,Culture & Environment Services,British Cycling Fe,25.00, Miscellaneous Expenses ,Crafted Refunds
09-Aug-19,Culture & Environment Services,British Cycling Fe,25.00, Miscellaneous Expenses ,Crafted Refunds
09-Aug-19,Culture & Environment Services,British Cycling Fe,25.00, Miscellaneous Expenses ,Crafted Refunds
09-Aug-19,Culture & Environment Services,British Cycling Fe,25.00, Miscellaneous Expenses ,Crafted Refunds
09-Aug-19,Culture & Environment Services,British Cycling Fe,25.00, Miscellaneous Expenses ,Crafted Refunds
09-Aug-19,Culture & Environment Services,British Cycling Fe,25.00, Miscellaneous Expenses ,Crafted Refunds
09-Aug-19,Culture & Environment Services,British Cycling Fe,25.00, Miscellaneous Expenses ,Crafted Refunds
09-Aug-19,Culture & Environment Services,British Cycling Fe,25.00, Miscellaneous Expenses ,Crafted Refunds
09-Aug-19,Culture & Environment Services,British Cycling Fe,25.00, Miscellaneous Expenses ,Crafted Refunds
09-Aug-19,Culture & Environment Services,British Cycling Fe,25.00, Miscellaneous Expenses ,Crafted Refunds
12-Aug-19,Culture & Environment Services,British Cycling Fe,20.83, Miscellaneous Expenses ,Crafted Refunds
12-Aug-19,Culture & Environment Services,British Cycling Fe,20.83, Miscellaneous Expenses ,Crafted Refunds
12-Aug-19,Culture & Environment Services,British Cycling Fe,20.83, Miscellaneous Expenses ,Crafted Refunds
12-Aug-19,Culture & Environment Services,British Cycling Fe,20.83, Miscellaneous Expenses ,Crafted Refunds
12-Aug-19,Culture & Environment Services,British Cycling Fe,20.83, Miscellaneous Expenses ,Crafted Refunds
12-Aug-19,Culture & Environment Services,British Cycling Fe,20.83, Miscellaneous Expenses ,Crafted Refunds
12-Aug-19,Culture & Environment Services,British Cycling Fe,20.83, Miscellaneous Expenses ,Crafted Refunds
12-Aug-19,Culture & Environment Services,British Cycling Fe,20.83, Miscellaneous Expenses ,Crafted Refunds
12-Aug-19,Culture & Environment Services,British Cycling Fe,20.83, Miscellaneous Expenses ,Crafted Refunds
12-Aug-19,Culture & Environment Services,British Cycling Fe,20.83, Miscellaneous Expenses ,Crafted Refunds
12-Aug-19,Culture & Environment Services,British Cycling Fe,20.83, Miscellaneous Expenses ,Crafted Refunds
12-Aug-19,Culture & Environment Services,British Cycling Fe,20.83, Miscellaneous Expenses ,Crafted Refunds
12-Aug-19,Culture & Environment Services,British Cycling Fe,20.83, Miscellaneous Expenses ,Crafted Refunds
12-Aug-19,Culture & Environment Services,British Cycling Fe,20.83, Miscellaneous Expenses ,Crafted Refunds
12-Aug-19,Culture & Environment Services,British Cycling Fe,20.83, Miscellaneous Expenses ,Crafted Refunds
12-Aug-19,Culture & Environment Services,British Cycling Fe,20.83, Miscellaneous Expenses ,Crafted Refunds
12-Aug-19,Culture & Environment Services,British Cycling Fe,20.83, Miscellaneous Expenses ,Crafted Refunds
12-Aug-19,Culture & Environment Services,British Cycling Fe,20.83, Miscellaneous Expenses ,Crafted Refunds
12-Aug-19,Culture & Environment Services,British Cycling Fe,20.83, Miscellaneous Expenses ,Crafted Refunds
12-Aug-19,Culture & Environment Services,British Cycling Fe,20.83, Miscellaneous Expenses ,Crafted Refunds
12-Aug-19,Culture & Environment Services,British Cycling Fe,20.83, Miscellaneous Expenses ,Crafted Refunds
12-Aug-19,Culture & Environment Services,British Cycling Fe,20.83, Miscellaneous Expenses ,Crafted Refunds
12-Aug-19,Culture & Environment Services,British Cycling Fe,20.83, Miscellaneous Expenses ,Crafted Refunds
12-Aug-19,Culture & Environment Services,British Cycling Fe,20.83, Miscellaneous Expenses ,Crafted Refunds
12-Aug-19,Culture & Environment Services,British Cycling Fe,20.83, Miscellaneous Expenses ,Crafted Refunds
12-Aug-19,Culture & Environment Services,British Cycling Fe,25.00, Miscellaneous Expenses ,Crafted Refunds
12-Aug-19,Culture & Environment Services,British Cycling Fe,25.00, Miscellaneous Expenses ,Crafted Refunds
12-Aug-19,Culture & Environment Services,British Cycling Fe,25.00, Miscellaneous Expenses ,Crafted Refunds
12-Aug-19,Culture & Environment Services,British Cycling Fe,25.00, Miscellaneous Expenses ,Crafted Refunds
12-Aug-19,Culture & Environment Services,British Cycling Fe,25.00, Miscellaneous Expenses ,Crafted Refunds
12-Aug-19,Culture & Environment Services,British Cycling Fe,25.00, Miscellaneous Expenses ,Crafted Refunds
12-Aug-19,Culture & Environment Services,British Cycling Fe,25.00, Miscellaneous Expenses ,Crafted Refunds
12-Aug-19,Culture & Environment Services,British Cycling Fe,25.00, Miscellaneous Expenses ,Crafted Refunds
12-Aug-19,Culture & Environment Services,British Cycling Fe,25.00, Miscellaneous Expenses ,Crafted Refunds
12-Aug-19,Culture & Environment Services,British Cycling Fe,25.00, Miscellaneous Expenses ,Crafted Refunds
12-Aug-19,Culture & Environment Services,British Cycling Fe,25.00, Miscellaneous Expenses ,Crafted Refunds
12-Aug-19,Culture & Environment Services,British Cycling Fe,25.00, Miscellaneous Expenses ,Crafted Refunds
12-Aug-19,Culture & Environment Services,British Cycling Fe,25.00, Miscellaneous Expenses ,Crafted Refunds
12-Aug-19,Culture & Environment Services,British Cycling Fe,25.00, Miscellaneous Expenses ,Crafted Refunds
12-Aug-19,Culture & Environment Services,British Cycling Fe,25.00, Miscellaneous Expenses ,Crafted Refunds
12-Aug-19,Culture & Environment Services,British Cycling Fe,25.00, Miscellaneous Expenses ,Crafted Refunds
12-Aug-19,Culture & Environment Services,British Cycling Fe,25.00, Miscellaneous Expenses ,Crafted Refunds
12-Aug-19,Culture & Environment Services,British Cycling Fe,25.00, Miscellaneous Expenses ,Crafted Refunds
12-Aug-19,Culture & Environment Services,British Cycling Fe,25.00, Miscellaneous Expenses ,Crafted Refunds
12-Aug-19,Culture & Environment Services,British Cycling Fe,25.00, Miscellaneous Expenses ,Crafted Refunds
12-Aug-19,Culture & Environment Services,British Cycling Fe,25.00, Miscellaneous Expenses ,Crafted Refunds
12-Aug-19,Culture & Environment Services,British Cycling Fe,25.00, Miscellaneous Expenses ,Crafted Refunds
12-Aug-19,Culture & Environment Services,British Cycling Fe,25.00, Miscellaneous Expenses ,Crafted Refunds
12-Aug-19,Culture & Environment Services,British Cycling Fe,25.00, Miscellaneous Expenses ,Crafted Refunds
12-Aug-19,Culture & Environment Services,British Cycling Fe,25.00, Miscellaneous Expenses ,Crafted Refunds
12-Aug-19,Culture & Environment Services,British Cycling Fe,25.00, Miscellaneous Expenses ,Crafted Refunds
12-Aug-19,Culture & Environment Services,British Cycling Fe,25.00, Miscellaneous Expenses ,Crafted Refunds
12-Aug-19,Culture & Environment Services,British Cycling Fe,25.00, Miscellaneous Expenses ,Crafted Refunds
12-Aug-19,Culture & Environment Services,British Cycling Fe,25.00, Miscellaneous Expenses ,Crafted Refunds
12-Aug-19,Culture & Environment Services,British Cycling Fe,25.00, Miscellaneous Expenses ,Crafted Refunds
12-Aug-19,Culture & Environment Services,British Cycling Fe,25.00, Miscellaneous Expenses ,Crafted Refunds
12-Aug-19,Culture & Environment Services,British Cycling Fe,25.00, Miscellaneous Expenses ,Crafted Refunds
12-Aug-19,Culture & Environment Services,British Cycling Fe,25.00, Miscellaneous Expenses ,Crafted Refunds
12-Aug-19,Culture & Environment Services,British Cycling Fe,25.00, Miscellaneous Expenses ,Crafted Refunds
12-Aug-19,Culture & Environment Services,British Cycling Fe,25.00, Miscellaneous Expenses ,Crafted Refunds
12-Aug-19,Culture & Environment Services,British Cycling Fe,25.00, Miscellaneous Expenses ,Crafted Refunds
12-Aug-19,Culture & Environment Services,British Cycling Fe,25.00, Miscellaneous Expenses ,Crafted Refunds
12-Aug-19,Culture & Environment Services,British Cycling Fe,25.00, Miscellaneous Expenses ,Crafted Refunds
12-Aug-19,Culture & Environment Services,British Cycling Fe,25.00, Miscellaneous Expenses ,Crafted Refunds
12-Aug-19,Culture & Environment Services,British Cycling Fe,41.67, Miscellaneous Expenses ,Crafted Refunds
12-Aug-19,Culture & Environment Services,British Cycling Fe,41.67, Miscellaneous Expenses ,Crafted Refunds
12-Aug-19,Culture & Environment Services,British Cycling Fe,41.67, Miscellaneous Expenses ,Crafted Refunds
12-Aug-19,Culture & Environment Services,British Cycling Fe,41.67, Miscellaneous Expenses ,Crafted Refunds
12-Aug-19,Culture & Environment Services,British Cycling Fe,41.67, Miscellaneous Expenses ,Crafted Refunds
12-Aug-19,Culture & Environment Services,British Cycling Fe,50.00, Miscellaneous Expenses ,Crafted Refunds
12-Aug-19,Culture & Environment Services,British Cycling Fe,50.00, Miscellaneous Expenses ,Crafted Refunds
12-Aug-19,Culture & Environment Services,British Cycling Fe,50.00, Miscellaneous Expenses ,Crafted Refunds
12-Aug-19,Culture & Environment Services,British Cycling Fe,50.00, Miscellaneous Expenses ,Crafted Refunds
12-Aug-19,Culture & Environment Services,British Cycling Fe,50.00, Miscellaneous Expenses ,Crafted Refunds
12-Aug-19,Culture & Environment Services,British Cycling Fe,50.00, Miscellaneous Expenses ,Crafted Refunds
12-Aug-19,Culture & Environment Services,British Cycling Fe,50.00, Miscellaneous Expenses ,Crafted Refunds
12-Aug-19,Culture & Environment Services,British Cycling Fe,75.00, Miscellaneous Expenses ,Crafted Refunds
22-Aug-19,Culture & Environment Services,British Cycling Fe,20.83, Miscellaneous Expenses ,Crafted Refunds
22-Aug-19,Culture & Environment Services,British Cycling Fe,25.00, Miscellaneous Expenses ,Crafted Refunds
22-Aug-19,Culture & Environment Services,British Cycling Fe,25.00, Miscellaneous Expenses ,Crafted Refunds
22-Aug-19,Culture & Environment Services,British Cycling Fe,25.00, Miscellaneous Expenses ,Crafted Refunds
22-Aug-19,Culture & Environment Services,British Cycling Fe,25.00, Miscellaneous Expenses ,Crafted Refunds
22-Aug-19,Culture & Environment Services,British Cycling Fe,25.00, Miscellaneous Expenses ,Crafted Refunds
22-Aug-19,Culture & Environment Services,British Cycling Fe,25.00, Miscellaneous Expenses ,Crafted Refunds
22-Aug-19,Culture & Environment Services,British Cycling Fe,25.00, Miscellaneous Expenses ,Crafted Refunds
22-Aug-19,Culture & Environment Services,British Cycling Fe,25.00, Miscellaneous Expenses ,Crafted Refunds
22-Aug-19,Culture & Environment Services,British Cycling Fe,41.67, Miscellaneous Expenses ,Crafted Refunds
22-Aug-19,Culture & Environment Services,British Cycling Fe,50.00, Miscellaneous Expenses ,Crafted Refunds
22-Aug-19,Culture & Environment Services,British Cycling Fe,50.00, Miscellaneous Expenses ,Crafted Refunds
22-Aug-19,Culture & Environment Services,British Cycling Fe,50.00, Miscellaneous Expenses ,Crafted Refunds
22-Aug-19,Culture & Environment Services,British Cycling Fe,50.00, Miscellaneous Expenses ,Crafted Refunds
22-Aug-19,Culture & Environment Services,British Cycling Fe,50.00, Miscellaneous Expenses ,Crafted Refunds
23-Aug-19,Culture & Environment Services,British Cycling Fe,20.83, Miscellaneous Expenses ,Crafted Refunds
23-Aug-19,Culture & Environment Services,British Cycling Fe,20.83, Miscellaneous Expenses ,Crafted Refunds
23-Aug-19,Culture & Environment Services,British Cycling Fe,20.83, Miscellaneous Expenses ,Crafted Refunds
23-Aug-19,Culture & Environment Services,British Cycling Fe,20.83, Miscellaneous Expenses ,Crafted Refunds
23-Aug-19,Culture & Environment Services,British Cycling Fe,20.83, Miscellaneous Expenses ,Crafted Refunds
23-Aug-19,Culture & Environment Services,British Cycling Fe,20.83, Miscellaneous Expenses ,Crafted Refunds
23-Aug-19,Culture & Environment Services,British Cycling Fe,20.83, Miscellaneous Expenses ,Crafted Refunds
23-Aug-19,Culture & Environment Services,British Cycling Fe,20.83, Miscellaneous Expenses ,Crafted Refunds
23-Aug-19,Culture & Environment Services,British Cycling Fe,20.83, Miscellaneous Expenses ,Crafted Refunds
23-Aug-19,Culture & Environment Services,British Cycling Fe,20.83, Miscellaneous Expenses ,Crafted Refunds
23-Aug-19,Culture & Environment Services,British Cycling Fe,20.83, Miscellaneous Expenses ,Crafted Refunds
23-Aug-19,Culture & Environment Services,British Cycling Fe,20.83, Miscellaneous Expenses ,Crafted Refunds
23-Aug-19,Culture & Environment Services,British Cycling Fe,20.83, Miscellaneous Expenses ,Crafted Refunds
23-Aug-19,Culture & Environment Services,British Cycling Fe,20.83, Miscellaneous Expenses ,Crafted Refunds
23-Aug-19,Culture & Environment Services,British Cycling Fe,20.83, Miscellaneous Expenses ,Crafted Refunds
23-Aug-19,Culture & Environment Services,British Cycling Fe,20.83, Miscellaneous Expenses ,Crafted Refunds
23-Aug-19,Culture & Environment Services,British Cycling Fe,20.83, Miscellaneous Expenses ,Crafted Refunds
23-Aug-19,Culture & Environment Services,British Cycling Fe,20.83, Miscellaneous Expenses ,Crafted Refunds
23-Aug-19,Culture & Environment Services,British Cycling Fe,20.83, Miscellaneous Expenses ,Crafted Refunds
23-Aug-19,Culture & Environment Services,British Cycling Fe,25.00, Miscellaneous Expenses ,Crafted Refunds
23-Aug-19,Culture & Environment Services,British Cycling Fe,25.00, Miscellaneous Expenses ,Crafted Refunds
23-Aug-19,Culture & Environment Services,British Cycling Fe,25.00, Miscellaneous Expenses ,Crafted Refunds
23-Aug-19,Culture & Environment Services,British Cycling Fe,25.00, Miscellaneous Expenses ,Crafted Refunds
23-Aug-19,Culture & Environment Services,British Cycling Fe,25.00, Miscellaneous Expenses ,Crafted Refunds
23-Aug-19,Culture & Environment Services,British Cycling Fe,25.00, Miscellaneous Expenses ,Crafted Refunds
23-Aug-19,Culture & Environment Services,British Cycling Fe,25.00, Miscellaneous Expenses ,Crafted Refunds
23-Aug-19,Culture & Environment Services,British Cycling Fe,25.00, Miscellaneous Expenses ,Crafted Refunds
23-Aug-19,Culture & Environment Services,British Cycling Fe,25.00, Miscellaneous Expenses ,Crafted Refunds
23-Aug-19,Culture & Environment Services,British Cycling Fe,25.00, Miscellaneous Expenses ,Crafted Refunds
23-Aug-19,Culture & Environment Services,British Cycling Fe,25.00, Miscellaneous Expenses ,Crafted Refunds
23-Aug-19,Culture & Environment Services,British Cycling Fe,25.00, Miscellaneous Expenses ,Crafted Refunds
23-Aug-19,Culture & Environment Services,British Cycling Fe,25.00, Miscellaneous Expenses ,Crafted Refunds
23-Aug-19,Culture & Environment Services,British Cycling Fe,25.00, Miscellaneous Expenses ,Crafted Refunds
23-Aug-19,Culture & Environment Services,British Cycling Fe,25.00, Miscellaneous Expenses ,Crafted Refunds
23-Aug-19,Culture & Environment Services,British Cycling Fe,25.00, Miscellaneous Expenses ,Crafted Refunds
23-Aug-19,Culture & Environment Services,British Cycling Fe,25.00, Miscellaneous Expenses ,Crafted Refunds
23-Aug-19,Culture & Environment Services,British Cycling Fe,25.00, Miscellaneous Expenses ,Crafted Refunds
23-Aug-19,Culture & Environment Services,British Cycling Fe,25.00, Miscellaneous Expenses ,Crafted Refunds
23-Aug-19,Culture & Environment Services,British Cycling Fe,25.00, Miscellaneous Expenses ,Crafted Refunds
23-Aug-19,Culture & Environment Services,British Cycling Fe,25.00, Miscellaneous Expenses ,Crafted Refunds
23-Aug-19,Culture & Environment Services,British Cycling Fe,25.00, Miscellaneous Expenses ,Crafted Refunds
23-Aug-19,Culture & Environment Services,British Cycling Fe,25.00, Miscellaneous Expenses ,Crafted Refunds
23-Aug-19,Culture & Environment Services,British Cycling Fe,25.00, Miscellaneous Expenses ,Crafted Refunds
23-Aug-19,Culture & Environment Services,British Cycling Fe,25.00, Miscellaneous Expenses ,Crafted Refunds
23-Aug-19,Culture & Environment Services,British Cycling Fe,25.00, Miscellaneous Expenses ,Crafted Refunds
23-Aug-19,Culture & Environment Services,British Cycling Fe,25.00, Miscellaneous Expenses ,Crafted Refunds
23-Aug-19,Culture & Environment Services,British Cycling Fe,25.00, Miscellaneous Expenses ,Crafted Refunds
23-Aug-19,Culture & Environment Services,British Cycling Fe,25.00, Miscellaneous Expenses ,Crafted Refunds
23-Aug-19,Culture & Environment Services,British Cycling Fe,25.00, Miscellaneous Expenses ,Crafted Refunds
23-Aug-19,Culture & Environment Services,British Cycling Fe,25.00, Miscellaneous Expenses ,Crafted Refunds
23-Aug-19,Culture & Environment Services,British Cycling Fe,25.00, Miscellaneous Expenses ,Crafted Refunds
23-Aug-19,Culture & Environment Services,British Cycling Fe,25.00, Miscellaneous Expenses ,Crafted Refunds
23-Aug-19,Culture & Environment Services,British Cycling Fe,25.00, Miscellaneous Expenses ,Crafted Refunds
23-Aug-19,Culture & Environment Services,British Cycling Fe,25.00, Miscellaneous Expenses ,Crafted Refunds
23-Aug-19,Culture & Environment Services,British Cycling Fe,25.00, Miscellaneous Expenses ,Crafted Refunds
23-Aug-19,Culture & Environment Services,British Cycling Fe,25.00, Miscellaneous Expenses ,Crafted Refunds
23-Aug-19,Culture & Environment Services,British Cycling Fe,25.00, Miscellaneous Expenses ,Crafted Refunds
23-Aug-19,Culture & Environment Services,British Cycling Fe,25.00, Miscellaneous Expenses ,Crafted Refunds
23-Aug-19,Culture & Environment Services,British Cycling Fe,25.00, Miscellaneous Expenses ,Crafted Refunds
23-Aug-19,Culture & Environment Services,British Cycling Fe,25.00, Miscellaneous Expenses ,Crafted Refunds
23-Aug-19,Culture & Environment Services,British Cycling Fe,25.00, Miscellaneous Expenses ,Crafted Refunds
23-Aug-19,Culture & Environment Services,British Cycling Fe,25.00, Miscellaneous Expenses ,Crafted Refunds
23-Aug-19,Culture & Environment Services,British Cycling Fe,41.67, Miscellaneous Expenses ,Crafted Refunds
23-Aug-19,Culture & Environment Services,British Cycling Fe,41.67, Miscellaneous Expenses ,Crafted Refunds
23-Aug-19,Culture & Environment Services,British Cycling Fe,41.67, Miscellaneous Expenses ,Crafted Refunds
23-Aug-19,Culture & Environment Services,British Cycling Fe,41.67, Miscellaneous Expenses ,Crafted Refunds
23-Aug-19,Culture & Environment Services,British Cycling Fe,41.67, Miscellaneous Expenses ,Crafted Refunds
23-Aug-19,Culture & Environment Services,British Cycling Fe,41.67, Miscellaneous Expenses ,Crafted Refunds
23-Aug-19,Culture & Environment Services,British Cycling Fe,41.67, Miscellaneous Expenses ,Crafted Refunds
23-Aug-19,Culture & Environment Services,British Cycling Fe,50.00, Miscellaneous Expenses ,Crafted Refunds
23-Aug-19,Culture & Environment Services,British Cycling Fe,50.00, Miscellaneous Expenses ,Crafted Refunds
23-Aug-19,Culture & Environment Services,British Cycling Fe,50.00, Miscellaneous Expenses ,Crafted Refunds
23-Aug-19,Culture & Environment Services,British Cycling Fe,50.00, Miscellaneous Expenses ,Crafted Refunds
23-Aug-19,Culture & Environment Services,British Cycling Fe,50.00, Miscellaneous Expenses ,Crafted Refunds
23-Aug-19,Culture & Environment Services,British Cycling Fe,50.00, Miscellaneous Expenses ,Crafted Refunds
23-Aug-19,Culture & Environment Services,British Cycling Fe,50.00, Miscellaneous Expenses ,Crafted Refunds
30-Aug-19,Culture & Environment Services,British Cycling Fe,20.83, Miscellaneous Expenses ,Crafted Refunds
30-Aug-19,Culture & Environment Services,British Cycling Fe,25.00, Miscellaneous Expenses ,Crafted Refunds
22-Aug-19,Culture & Environment Services,Bunzl,93.72, Cleaning Supplies ,Cleaning Supplies and Toilet roll HWP toilets
06-Aug-19,Culture & Environment Services,C Brewer & Sons,31.95, Equipment / Furniture / Materials ,Paint for steps at CCP Mansion
15-Aug-19,Culture & Environment Services,Clearaway Recycling,183.33, Miscellaneous Stock  - Purchases ,Hire of a skip - HORNDON ON THE HILL
01-Aug-19,Culture & Environment Services,Collier&catchpole,187.20, Miscellaneous Stock  - Purchases ,Mesh steel sheet - WHITEHOUSE SKATE PARK - Landscape Team
30-Aug-19,Culture & Environment Services,Collier&catchpole,277.76, Miscellaneous Stock  - Purchases ,Pallet of cement - LANDSCAPE TEAM
26-Aug-19,Culture & Environment Services,Cpw Locksmiths And Securi,26.00, Materials and Supplies - Miscellaneous ,Keys cut for edd shearon concert
15-Aug-19,Culture & Environment Services,Dauntless Yacht,74.18, Miscellaneous Stock  - Purchases ,Chain (for swings) - HORNDON ON THE HILL
16-Aug-19,Culture & Environment Services,Direct 365online Ltd,37.06, Equipment / Furniture / Materials ,Adult Defib Pads
16-Aug-19,Culture & Environment Services,Direct 365online Ltd,37.05, Equipment / Furniture / Materials ,Adult Defib Pads
30-Aug-19,Culture & Environment Services,Dwp,38.70, Non Contracted_Professional Services ,ML_H&S FEES - intervention regulation
06-Aug-19,Culture & Environment Services,Eastern Hose & Hydraul,21.62, Materials and Supplies - Miscellaneous ,Purchase of Standpipe
13-Aug-19,Culture & Environment Services,Ellenbrook,21.78, Direct Transport Costs ,20.44l petrol - jerry can - machinery
29-Aug-19,Culture & Environment Services,Firstaid4less.Co.Uk,73.45, Cleaning Supplies ,First Aid Supplies
23-Aug-19,Culture & Environment Services,Fr Jones And Son Ltd,44.10, Materials and Supplies - Miscellaneous ,Husqvarna cover / filling spout
09-Aug-19,Culture & Environment Services,Groundsman Tools And Supp,173.90, Materials and Supplies - Miscellaneous ,"1 x Hand Trowel, 1 x Spreader"
30-Aug-19,Culture & Environment Services,Groundsman Tools And Supp,117.36, Materials and Supplies - Miscellaneous ,8x Oregon Polycarbonate Visor & Muff Set for strimming
05-Aug-19,Culture & Environment Services,Halfords 0883,37.49, Equipment / Furniture / Materials ,Payment got new HEARS vans mats
05-Aug-19,Culture & Environment Services,Halfords 0883,37.49, Equipment / Furniture / Materials ,Payment got new HEARS vans mats
26-Aug-19,Culture & Environment Services,Halfords 0883,16.67, Equipment / Furniture / Materials ,Purchase of bike lights (front and back) for concert staff
28-Aug-19,Culture & Environment Services,Halfords 0883,5.83, Miscellaneous Stock  - Purchases ,Bungee Strap - JUBILEE PARK PLAY AREA
07-Aug-19,Culture & Environment Services,Hamabeads.Com,93.52, Equipment / Furniture / Materials ,Christmas parties
23-Aug-19,Culture & Environment Services,Harbro Supplies Ltd,247.43, Goods for Resale - Bereavement ,masonry supplies
09-Aug-19,Culture & Environment Services,Hg Gladwell & Sons,22.65, Materials and Supplies - Miscellaneous ,Duck food for Holywells park
15-Aug-19,Culture & Environment Services,Hg Gladwell & Sons,56.62, Materials and Supplies - Miscellaneous ,Duck food - CHRISTCHURCH HUB
29-Aug-19,Culture & Environment Services,Hg Gladwell & Sons,30.82, Materials and Supplies - Miscellaneous ,Fish food (round pond) Christchurch Hub
08-Aug-19,Culture & Environment Services,Homebase,28.75, Miscellaneous Stock  - Purchases ,Paint - HORNDON ON THE HILL - Landscape Team
09-Aug-19,Culture & Environment Services,Homebase,7.50, Miscellaneous Stock  - Purchases ,Paint Brushes - HORNDON ON THE HILL
20-Aug-19,Culture & Environment Services,Homebase,35.21, Miscellaneous Stock  - Purchases ,Oil for pine & clothes - HORNDON ON THE HILL
29-Aug-19,Culture & Environment Services,Horticultural Sppls Ltd,73.65, Materials and Supplies - Miscellaneous ,Grazon Pro bramble killer for Cemetery
09-Aug-19,Culture & Environment Services,J P Lennard Ltd,388.85, Equipment / Furniture / Materials ,Additional Wrist bands for Crown Pools
14-Aug-19,Culture & Environment Services,J P Lennard Ltd,634.40, Equipment / Furniture / Materials ,pool test machine
16-Aug-19,Culture & Environment Services,Kent Blaxill And C,52.50, Equipment / Furniture / Materials ,Bench stain
09-Aug-19,Culture & Environment Services,Lumberjacks,4.92, Materials and Supplies - Miscellaneous ,Bolts - CHRISTCHURCH HUB
09-Aug-19,Culture & Environment Services,Lumberjacks,54.12, Materials and Supplies - Miscellaneous ,Panels & Concrete - CHRISTCHURCH HUB
15-Aug-19,Culture & Environment Services,Lumberjacks,65.70, Materials and Supplies - Miscellaneous ,Hard wood & screws - CHRISTCHURCH HUB
01-Aug-19,Culture & Environment Services,Lumberjacks,180.12, Miscellaneous Stock  - Purchases ,Plywood - WHITEHOUSE SKATE PARK - Landscape Team
20-Aug-19,Culture & Environment Services,Lumberjacks,23.10, Miscellaneous Stock  - Purchases ,Plywood - WHITEHOUSE SKATE PARK - Landscape Team
28-Aug-19,Culture & Environment Services,Lumberjacks,34.90, Miscellaneous Stock  - Purchases ,Plywood - SKATE PARK - Landscape Team
16-Aug-19,Culture & Environment Services,Machine Mart Ltd,21.98, Miscellaneous Stock  - Purchases ,DP BITSET - LANDSCAPE TEAM
08-Aug-19,Culture & Environment Services,Newitts.Com,114.60, Equipment / Furniture / Materials ,Boaccia Balls - WSCC 
30-Jul-19,Culture & Environment Services,Owayo,964.09, Non Contracted_Professional Services ,Jersey Orders for Crafted
16-Aug-19,Culture & Environment Services,Paypal,390.30, Clothing / Uniform & Laundry ,Chain saw trousers gloves boots socks
08-Aug-19,Culture & Environment Services,Paypal,75.47, Materials and Supplies - Miscellaneous ,Pitch care Asulox Herbiside
08-Aug-19,Culture & Environment Services,Paypal,75.47, Materials and Supplies - Miscellaneous ,Pitch care Asulox Herbiside
22-Aug-19,Culture & Environment Services,Poundland Ltd 1344,2.50, Equipment / Furniture / Materials ,Milk for FOH and back stage
05-Aug-19,Culture & Environment Services,Premier Inn 44536100,108.75, Non Contracted_Professional Services ,SPD Performance Accomodation
05-Aug-19,Culture & Environment Services,Premier Inn 44536100,140.83, Non Contracted_Professional Services , SPD Performance Accomodation
09-Aug-19,Culture & Environment Services,Premier Inn 44536100,94.17, Non Contracted_Professional Services ,Acrobatic Duo SPD Performers Accommodation
08-Aug-19,Culture & Environment Services,Ridgeons Atc Ipswich,512.52, Equipment / Furniture / Materials ,items for landscaping CCP mansion
20-Aug-19,Culture & Environment Services,Ridgeons Ipswich,89.40, Materials and Supplies - Miscellaneous ,Post Mix - MADE IN SUFFOLK - CCP
01-Aug-19,Culture & Environment Services,Ridgeons Ipswich,68.60, Miscellaneous Stock  - Purchases ,Plywood - WHITEHOUSE SKATE PARK - Landscape Team
05-Aug-19,Culture & Environment Services,Ridgeons Ipswich,81.72, Miscellaneous Stock  - Purchases ,Carcassing - WHITEHOUSE SKATE PARK
19-Aug-19,Culture & Environment Services,Ridgeons Ipswich,207.49, Miscellaneous Stock  - Purchases ,Plywood - JUBILEE PARK PLAY AREA
23-Aug-19,Culture & Environment Services,Rowland Brothers Trade,777.26, Materials and Supplies - Miscellaneous ,ashes boxes
20-Aug-19,Culture & Environment Services,Royal Mail Charges,1.50, Postage Costs ,Postage
20-Aug-19,Culture & Environment Services,Royal Mail Charges,1.50, Postage Costs ,Postage Costs
01-Aug-19,Culture & Environment Services,Ryman,33.28, Advertising/Publicity ,Dynmo label cartridges for tech dept
26-Aug-19,Culture & Environment Services,S. Critchley & Son,274.80, Goods for Resale - Bereavement ,ground anchors
06-Aug-19,Culture & Environment Services,Sainsburys S/mkt,5.50, Catering/Beverages ,Food for Sports Centre Pack Lunches
06-Aug-19,Culture & Environment Services,Sainsburys S/mkt,17.86, Catering/Beverages ,Food for Sports Centre Pack Lunches
08-Aug-19,Culture & Environment Services,Sainsburys S/mkt,28.00, Catering/Beverages ,Food for Sports Centre Pack Lunches
09-Aug-19,Culture & Environment Services,Sainsburys S/mkt,39.15, Catering/Beverages ,Food for Sports Centre Pack Lunches
13-Aug-19,Culture & Environment Services,Sainsburys S/mkt,53.10, Catering/Beverages ,Food for Sports Centre Pack Lunches
15-Aug-19,Culture & Environment Services,Sainsburys S/mkt,41.30, Catering/Beverages ,Food for Sport Centre Packed Lunches
22-Aug-19,Culture & Environment Services,Sainsburys S/mkt,15.20, Catering/Beverages ,Food for Sports Centre Packed Lunches
23-Aug-19,Culture & Environment Services,Sainsburys S/mkt,52.70, Catering/Beverages ,Food for Sports Centre Packed lunches
23-Aug-19,Culture & Environment Services,Sainsburys S/mkt,0.50, Catering/Beverages ,Food for Sports Centre Packed lunches
30-Aug-19,Culture & Environment Services,Sainsburys S/mkt,15.94, Catering/Beverages ,Food for Sports Centres Packed Lunches
19-Aug-19,Culture & Environment Services,Sainsburys S/mkt,10.08, Materials and Supplies - Miscellaneous ,Hygiene Gel - MADE IN SUFFOLK
02-Aug-19,Culture & Environment Services,Sainsburys S/mkts,3.80, Catering/Beverages ,Food for Sports Centre Pack Lunches
05-Aug-19,Culture & Environment Services,Sainsburys S/mkts,1.67, Catering/Beverages ,Food for Sports Centre Pack Lunches
07-Aug-19,Culture & Environment Services,Sainsburys S/mkts,29.85, Catering/Beverages ,Food for Sports Centre Pack Lunches
08-Aug-19,Culture & Environment Services,Sainsburys S/mkts,20.25, Catering/Beverages ,Food for Sports Centre Pack Lunches
08-Aug-19,Culture & Environment Services,Sainsburys S/mkts,0.50, Catering/Beverages ,Food for Sports Centre Pack Lunches
09-Aug-19,Culture & Environment Services,Sainsburys S/mkts,13.75, Catering/Beverages ,Food for Sports Centre Pack Lunches
21-Aug-19,Culture & Environment Services,Sainsburys S/mkts,2.50, Catering/Beverages ,Food for Sports Centre Packed Lunches
28-Aug-19,Culture & Environment Services,Sainsburys S/mkts,0.25, Catering/Beverages ,Cress for Sport Centre packed Lunches
02-Aug-19,Culture & Environment Services,Sainsburys S/mkts,2.50, Equipment / Furniture / Materials ,Glue sticks - Summer Holidays
09-Aug-19,Culture & Environment Services,Sainsburys S/mkts,2.50, Equipment / Furniture / Materials ,PVA Glue - Summer Holiday Activities
22-Aug-19,Culture & Environment Services,Screwfix Dir. Ltd,43.61, Equipment / Furniture / Materials ,Purchase of Sander and pads for Regent Dressing Rooms
16-Aug-19,Culture & Environment Services,Screwfix Dir. Ltd,89.15, Materials and Supplies - Miscellaneous ,Long tape 100m-330ft - CHANTRY HUB
21-Aug-19,Culture & Environment Services,Screwfix Dir. Ltd,11.32, Materials and Supplies - Miscellaneous ,Primer & Undercoat - MADE IN SUFFOLK
23-Aug-19,Culture & Environment Services,Screwfix Dir. Ltd,21.65, Miscellaneous Stock  - Purchases ,Items to install fencing
28-Aug-19,Culture & Environment Services,Screwfix Direct Lt,30.80, Miscellaneous Stock  - Purchases ,Expanding foam filler & Screws - Landscape Team
30-Aug-19,Culture & Environment Services,Scribbl.Co.Uk,13.42, Equipment / Furniture / Materials ,2020 work dairy
09-Aug-19,Culture & Environment Services,Sharman Caravans,25.00, Materials and Supplies - Miscellaneous ,Pegs - CHRISTCHURCH HUB
30-Aug-19,Culture & Environment Services,Sharman Caravans,25.00, Materials and Supplies - Miscellaneous ,Pegs - Christchurch Hub
29-Aug-19,Culture & Environment Services,Shell Ranelagh 390,12.50, Equipment / Furniture / Materials ,Diesel for van taking ramp to corn exchange
23-Aug-19,Culture & Environment Services,Sjasuplies,232.00, Materials and Supplies - Miscellaneous ,Gloves for responders 5xLarege 30x Medium 5xSmall
14-Aug-19,Culture & Environment Services,Sproughton Garden Machine,30.00, Transport - Repairs ,Cleansing blower repairs
23-Aug-19,Culture & Environment Services,Surf & Turf Instant Sh,45.00, Premises Costs - Miscellaneous ,gazebo legs for Ipswich Market
02-Aug-19,Culture & Environment Services,Sustainable Furniture,"2,880.00", Capital Expenditure ,Picnic benches for public use
05-Aug-19,Culture & Environment Services,Sustainable Furniture,-315.00, Miscellaneous Stock  - Purchases ,Picnic Benches refund for change of purchase
15-Aug-19,Culture & Environment Services,Swanns Nursery,194.32, Materials and Supplies - Miscellaneous ,Bay Trees - MADE IN SUFFOLK
01-Aug-19,Culture & Environment Services,Tesco Store 2748,65.22, Catering/Beverages ,Food for Bobby Robson Saved my Life VIP reception
14-Aug-19,Culture & Environment Services,Tesco Store 3240,2.50, Catering/Beverages ,Food for Sports Centre Packed Lunches
16-Aug-19,Culture & Environment Services,Tesco Store 3240,8.72, Catering/Beverages ,Food for Sports Centre Packed Lunches
16-Aug-19,Culture & Environment Services,Tesco Store 3240,1.67, Catering/Beverages ,Food for Sports Centre Packed Lunches
21-Aug-19,Culture & Environment Services,Tesco Store 3240,11.04, Catering/Beverages ,"food for Derivco, Made in Suffolk and Sports Centre Packed L"
21-Aug-19,Culture & Environment Services,Tesco Store 3240,39.55, Catering/Beverages ,"food for Derivco, Made in Suffolk and Sports Centre Packed L"
21-Aug-19,Culture & Environment Services,Tesco Store 3240,55.20, Catering/Beverages ,"food for Derivco, Made in Suffolk and Sports Centre Packed L"
21-Aug-19,Culture & Environment Services,Tesco Store 3240,55.20, Catering/Beverages ,"food for Derivco, Made in Suffolk and Sports Centre Packed L"
28-Aug-19,Culture & Environment Services,Tesco Store 3240,55.45, Catering/Beverages ,Food for Sports Centres Packed Lunches
30-Aug-19,Culture & Environment Services,The Range,10.82, Equipment / Furniture / Materials ,Arts and Crafts - Paint Pens and Foam Cards
09-Aug-19,Culture & Environment Services,The Range,4.99, Materials and Supplies - Miscellaneous ,Hammer - CHRISTCHURCH HUB
21-Aug-19,Culture & Environment Services,The Range,24.89, Materials and Supplies - Miscellaneous ,Masonry & Brushes - GIPPESWYK PARK
16-Aug-19,Culture & Environment Services,Timpson,6.67, Materials and Supplies - Miscellaneous ,Keys cut - CHANTRY HUB
26-Aug-19,Culture & Environment Services,Timpson,10.00, Materials and Supplies - Miscellaneous ,key cutting for bin stores
19-Aug-19,Culture & Environment Services,Timpson,35.83, Miscellaneous Expenses ,Keys cut for the portacabins - MADE IN SUFFOLK
21-Aug-19,Culture & Environment Services,Timpson,10.00, Miscellaneous Expenses ,Keys for portacabin - MADE IN SUFFOLK
12-Aug-19,Culture & Environment Services,Tippers R Us,495.00, Materials and Supplies - Miscellaneous ,Disposal of muck - CHANTRY HUB
02-Aug-19,Culture & Environment Services,Tony Bates Haulage,166.67, Miscellaneous Stock  - Purchases ,5ton of Ballast - HORNDON ON THE HILL
06-Aug-19,Culture & Environment Services,Tony Bates Haulage,166.67, Miscellaneous Stock  - Purchases ,5ton Ballast - HORNDON ON THE HILL
06-Aug-19,Culture & Environment Services,Tony Bates Haulage,166.67, Miscellaneous Stock  - Purchases ,5ton of Ballast - HORNDON ON THE HILL
13-Aug-19,Culture & Environment Services,Tony Bates Haulage,166.67, Miscellaneous Stock  - Purchases ,5ton Ballast - HORNDON ON THE HILL
30-Aug-19,Culture & Environment Services,Toolstation Ltd,11.68, Equipment / Furniture / Materials ,Bin lock ties for Litter bins
02-Aug-19,Culture & Environment Services,Toolstation Ltd,2.65, Miscellaneous Stock  - Purchases ,Cutting disc - Landscape Team
22-Aug-19,Culture & Environment Services,Toolstation Ltd,24.95, Miscellaneous Stock  - Purchases ,Damp proof membrance - WHITEHOUSE SKATE PARK - Landscape Tea
28-Aug-19,Culture & Environment Services,Toolstation Ltd,36.67, Miscellaneous Stock  - Purchases ,Cutting discs - LANDSCAPE TEAM
15-Aug-19,Culture & Environment Services,Town & Tea,73.96, Catering/Beverages ,Meeting sundries
30-Aug-19,Culture & Environment Services,Trainline,80.50, Use Of Public Transport ,Course (AL)
07-Aug-19,Culture & Environment Services,Travelodge Gb0000,"1,143.33", Non Contracted_Professional Services ,Maritime Festival Performers Accommodation
07-Aug-19,Culture & Environment Services,Travelodge Gb0000,"1,143.33", Non Contracted_Professional Services ,Maritime Performer's Accommodation
07-Aug-19,Culture & Environment Services,Tudor Environmental,303.13, Materials and Supplies - Miscellaneous ,Husquarna Pole Pruner
07-Aug-19,Culture & Environment Services,Turner Tool Hire,679.25, Equipment Hire ,MEW Hire - Invoice 211154
07-Aug-19,Culture & Environment Services,Turner Tool Hire,"2,500.00", Equipment Hire ,MEWP Hire Invoice 211154
07-Aug-19,Culture & Environment Services,Turner Tool Hire,"1,001.55", Equipment Hire ,MEWP Hire Invoice 211211
22-Aug-19,Culture & Environment Services,Turner Tool Hire,"1,445.77", Equipment Hire ,MEWP Hire
26-Aug-19,Culture & Environment Services,Tvlicensing.Co.Uk,154.50, Licences & Other Fees ,Corn Exchange TV Licence
06-Aug-19,Culture & Environment Services,Value Products Ltd,80.00, Materials and Supplies - Miscellaneous ,200 Instant Ice Packs.
06-Aug-19,Culture & Environment Services,Victoria Nurseries,191.61, Materials and Supplies - Miscellaneous ,Bedding Flowers - MADE IN SUFFOLK
16-Aug-19,Culture & Environment Services,Victoria Nurseries,11.76, Materials and Supplies - Miscellaneous ,Cane & Twine - CHRISTCHURCH HUB
20-Aug-19,Culture & Environment Services,Victoria Nurseries,41.58, Materials and Supplies - Miscellaneous ,Plants - MADE IN SUFFOLK
07-Aug-19,Culture & Environment Services,W J Green Limited,134.26, Materials and Supplies - Miscellaneous ,Chain saw - links oregon bar - Shroud
05-Aug-19,Culture & Environment Services,Waitrose Ltd,3.69, Catering/Beverages ,Food for Sports Centre Pack Lunches
20-Aug-19,Culture & Environment Services,Waitrose Ltd,1.15, Catering/Beverages ,Milk for Various conferences
23-Aug-19,Culture & Environment Services,Waitrose Ltd,5.58, Catering/Beverages ,Food for Sports Centre Packed Lunches
08-Aug-19,Culture & Environment Services,Waitrose Ltd,1.36, Subsistence & Conference/Seminar / Event Expenses ,biscuits for shopmo meetings
05-Aug-19,Culture & Environment Services,Wh Smith,10.82, Equipment / Furniture / Materials ,Back stage Diary
02-Aug-19,Culture & Environment Services,Wickes Building,100.00, Materials and Supplies - Miscellaneous ,Mypex
06-Aug-19,Culture & Environment Services,Wickes Ipswich,12.50, Equipment / Furniture / Materials ,Painting materials for CCP
14-Aug-19,Culture & Environment Services,Wickes Ipswich,7.05, Equipment / Furniture / Materials ,Postcrete - DOWNING CLOSE
30-Aug-19,Culture & Environment Services,Wickes Ipswich,9.99, Materials and Supplies - Miscellaneous ,Level & Mallet (rugby socket)- CHANTRY ACADEMY - Holywells
08-Aug-19,Culture & Environment Services,Wickes Ipswich,37.82, Miscellaneous Stock  - Purchases ,Cement - HORNDON ON THE HILL
21-Aug-19,Culture & Environment Services,Wickes Ipswich,21.15, Miscellaneous Stock  - Purchases ,Postcrete - WHITEHOUSE SKATE PARK - Landscape Team
12-Aug-19,Culture & Environment Services,Wilko Retail Limit,10.83, Equipment / Furniture / Materials ,2 X GORRILLA TAPE
21-Aug-19,Culture & Environment Services,Wilko Retail Limit,8.33, Equipment / Furniture / Materials ,cable ties
14-Aug-19,Culture & Environment Services,Wilko Retail Limit,24.58, Materials and Supplies - Miscellaneous ,Galvanised wire - CHRISTCHURCH HUB
19-Aug-19,Culture & Environment Services,Wilko Retail Limit,73.33, Materials and Supplies - Miscellaneous ,Paint for wood - MADE IN SUFFOLK
29-Aug-19,Culture & Environment Services,Wilko Retail Limit,27.54, Materials and Supplies - Miscellaneous ,Paint and equipment for Regent Theatre dressing rooms
15-Aug-19,Culture & Environment Services,Www Littlecraftybugs Co U,4.76, Equipment / Furniture / Materials ,Christmas parties
28-Aug-19,Culture & Environment Services,Www.Banneruk.Com,16.01, Stationery ,Laminating pouches
29-Aug-19,Culture & Environment Services,Www.Banneruk.Com,3.36, Stationery ,Laminating pouches
30-Aug-19,Culture & Environment Services,Www.Cleaningproducts.N,38.80, Cleaning Supplies ,Bonnets for Numatic Loline 415
02-Aug-19,Culture & Environment Services,Www.Lifesaversdirect,246.00, Training/Courses Running Costs ,"NPLQ Renewal Pack, AED Paediatric pads & Adult pads"
02-Aug-19,Culture & Environment Services,Www.Lifesaversdirect,58.99, Training/Courses Running Costs ,"NPLQ Renewal Pack, AED Paediatric pads & Adult pads"
28-Aug-19,Culture & Environment Services,Www.Lifesaversdirect,214.00, Training/Courses Running Costs ,Candidate packs RLSS
09-Aug-19,Culture & Environment Services,Www.Meonuk.Com,729.00, Materials and Supplies - Miscellaneous ,Paint for Line marking
06-Aug-19,Culture & Environment Services,Www.Red17.Co.Uk,116.10, Equipment / Furniture / Materials ,A4 Frames
07-Aug-19,Culture & Environment Services,Www.Red17.Co.Uk,153.00, Equipment / Furniture / Materials ,A5 frames for toilets
16-Aug-19,Culture & Environment Services,Www.Thermometersdirect,14.90, Equipment / Furniture / Materials ,Purchase of thermometer for weekly water temp testing.
15-Aug-19,Culture & Environment Services,Www.Toolstation.Com,33.73, Equipment / Furniture / Materials ,Christmas parties
21-Aug-19,Development,Ac Leigh (Norwich) Ltd,110.00, Premises Costs - Miscellaneous ,key cards
22-Aug-19,Development,Amznmktplace,4.12, Equipment / Furniture / Materials ,Protective case for works phone
21-Aug-19,Development,B & Q 1315,88.64, Capital Expenditure ,"50L Bins & other items for East Villa opening,"
15-Aug-19,Development,Chartered Association,185.00, Employee Expenses ,CABE IBC Training Affiliate 19/20
15-Aug-19,Development,Chartered Association,50.00, Employee Expenses ,CABE joining fee 
15-Aug-19,Development,Chartered Association,210.00, Employee Expenses ,CABE Membership 19/20
15-Aug-19,Development,Chartered Association,275.00, Employee Expenses ,CABE Membership 19/20 
15-Aug-19,Development,Chartered Association,210.00, Employee Expenses ,CABE Membership 19/20 
16-Aug-19,Development,Chartered Association,275.00, Employee Expenses ,CABE m/ship 
29-Aug-19,Development,Lidl Gb Ipswich,3.30, Cleaning Supplies ,dishwasher salt
29-Aug-19,Development,Premier Stores,362.25, Publications - Purchase ,papers
19-Aug-19,Development,Sainsburys S/mkt,20.00, Subsistence & Conference/Seminar / Event Expenses ,milk etc
09-Aug-19,Development,"Www,eastsuffolk.Gov.Uk",192.00, Non Contracted_Professional Services ,Partnership Inspections 45 High St WM
15-Aug-19,Development,"Www,eastsuffolk.Gov.Uk",96.00, Non Contracted_Professional Services ,Partnership Application Pond House
16-Aug-19,Development,"Www,eastsuffolk.Gov.Uk",192.00, Non Contracted_Professional Services ,Partnership Inspections Pond House
26-Aug-19,Development,Www.Argos.Co.Uk,119.94, Fixtures & Fittings ,2 new microwaves for Grafton house
12-Aug-19,Development,Www.Mailcoms.Co.Uk,265.95, Postage Costs ,annual subs
09-Aug-19,Development,Www.Planningportal.Co.,116.00, Capital Expenditure ,planning app
09-Aug-19,Development,Www.Planningportal.Co.,20.83, Capital Expenditure ,planning app
21-Aug-19,Development,Www.Planningportal.Co.,141.00, Capital Expenditure ,Planning app PP-08163284v1. Sproughton site
01-Aug-19,Development,Www.Sackers .Co.Uk,300.00, Removal/Emptying of Waste ,bins
29-Aug-19,Development,Www.Sackers .Co.Uk,300.00, Removal/Emptying of Waste ,bins
20-Aug-19,Finance & Revenues,Amazon.Co.Uk,160.41, Computer Equipment - Purchase ,Additional microphone for conference camera
20-Aug-19,Finance & Revenues,Amazon.Co.Uk,626.64, Computer Equipment - Purchase ,Conference room camera
02-Aug-19,Finance & Revenues,Amznmktplace,8.70, Equipment / Furniture / Materials ,Protective cases for Smartphones
02-Aug-19,Finance & Revenues,Amznmktplace,23.57, Telecommunication Costs - Mobiles ,Protective cases for Smartphones
12-Aug-19,Finance & Revenues,Amznmktplace Amazon.Co.Uk,13.66, Telecommunication Costs - Mobiles ,Protective cases for Smartphones
19-Aug-19,Finance & Revenues,Amznmktplace Amazon.Co.Uk,13.66, Telecommunication Costs - Mobiles ,Protective cases for Smartphones
19-Aug-19,Finance & Revenues,Argos Retail Group,101.63, Computer Equipment - Purchase ,Made in Suffolk Exhibition printers
13-Aug-19,Finance & Revenues,Cba*tenable,"1,820.82", Non Contracted_Professional Services ,Nessus security scanning software licence renewal
26-Aug-19,Finance & Revenues,Cbt Nuggets,49.82, Training Expenses ,ICT Training
19-Aug-19,Finance & Revenues,Cloud Unifi Hosting,153.49, Computer Software - Maintenance ,Annual hosting fee for Unifi Cloud server
20-Aug-19,Finance & Revenues,Comms Express Ltd,21.83, Telecommunication Costs - Business Phones ,Network Cables
01-Aug-19,Finance & Revenues,Google,34.21, Computer Software - Purchase ,API usage
09-Aug-19,Finance & Revenues,Greater Anglia Trains,50.50, Use Of Public Transport ,Ipswich to London Liverpool Street Return 19/9/19
29-Aug-19,Finance & Revenues,Greater Anglia Trains,33.00, Use Of Public Transport ,Mannitree to London Liverpool Street Return 12/9/19
05-Aug-19,Finance & Revenues,Kenable Ltd,38.75, Equipment / Furniture / Materials ,Agile cables
08-Aug-19,Finance & Revenues,Kenable Ltd,83.90, Equipment / Furniture / Materials ,"Agile cables, USB C and HDMI - DVI"
02-Aug-19,Finance & Revenues,Paypal,23.73, Computer Equipment - Purchase ,Charger for Acer laptops at Corn Exchange
14-Aug-19,Finance & Revenues,"Securitymetrics, Inc.",420.00, Non Contracted_Professional Services ,PCI Compliance renewal
07-Aug-19,Finance & Revenues,Service Fees - Fraedom Pty Ltd,383.15, Computer Software - Maintenance ,Fraedom Card Usage Fees 01/07/19 to 31/07/19
14-Aug-19,Finance & Revenues,Southend County,491.50, Legal Services & Fees ,Council Tax summons
29-Aug-19,Finance & Revenues,Southend County,350.50, Legal Services & Fees ,Council Tax and NDR Summons
29-Aug-19,Finance & Revenues,Trainline,89.17, Use Of Public Transport ,Rail Tickets  
29-Aug-19,Finance & Revenues,Trainline,34.25, Use Of Public Transport ,Rail Tickets 
01-Aug-19,Finance & Revenues,Www.Aat-Org.Uk,157.00, Employee Expenses ,MAAT Membership Fee
01-Aug-19,Finance & Revenues,Www.Ballicom.Co.Uk,155.60, Equipment / Furniture / Materials ,Cases for laptops
08-Aug-19,Finance & Revenues,Www.Cips.Org,300.00, Training Expenses ,Professional Training
08-Aug-19,Finance & Revenues,Www.Kaplanfoulkslynch.,159.00, Training Expenses ,CIMA Training Materials 
14-Aug-19,Housing & Community Services,Amazon Prime,7.99, Equipment / Furniture / Materials ,Amazon Prime
22-Aug-19,Housing & Community Services,Amazon Prime,6.66, Equipment / Furniture / Materials ,payment in error Amazon Prime paid back receipt No 15647 2/9
23-Aug-19,Housing & Community Services,Amazon.Co.Uk,24.16, Equipment / Furniture / Materials ,Laptop rucksack
26-Aug-19,Housing & Community Services,Amznmktplace,39.95, Equipment / Furniture / Materials ,Fans for the vans
14-Aug-19,Housing & Community Services,Amznmktplace,34.50, Materials and Supplies - Miscellaneous ,Fireman Keys
19-Aug-19,Housing & Community Services,Amznmktplace,11.50, Stationery ,"""COPY"" stamp for Surveyors"
27-Aug-19,Housing & Community Services,Amznmktplace,1.41, Stationery ,Key tags for identification of void property keys
08-Aug-19,Housing & Community Services,Amznmktplace,23.96, Telecommunication Costs - Mobiles ,Mobile phone screen protectors
09-Aug-19,Housing & Community Services,Amznmktplace,79.90, Telecommunication Costs - Mobiles ,Mobile phone cases
07-Aug-19,Housing & Community Services,Argos Warren Heath,105.37, Miscellaneous Expenses ,Keys safe batteries all schemes items Reydon & Wingate
07-Aug-19,Housing & Community Services,Cpw Locksmiths And Securi,80.00, HRA Special Repairs & Maintenance ,provide lock to scheme
22-Aug-19,Housing & Community Services,Cpw Locksmiths And Securi,180.00, Non Contracted_Professional Services ,3 PSH evictions 
08-Aug-19,Housing & Community Services,Gen Register Office,38.00, Services for Clients ,Birth certificate
28-Aug-19,Housing & Community Services,Gen Register Office,76.00, Services for Clients ,Marriage costs
29-Aug-19,Housing & Community Services,Hotel On Booking.Com Holi,249.00, Services for Clients ,Hotel costs for IBC tenant
19-Aug-19,Housing & Community Services,Instit Of Occptnl Safe,130.00, Employee Expenses ,IOSH Subscription
12-Aug-19,Housing & Community Services,J2 Efax Plus Service,11.00, Miscellaneous Expenses ,Monthly fee for secure fax system (used for food parcels)
08-Aug-19,Housing & Community Services,Lidl Gb Ipswich,19.92, Equipment / Furniture / Materials ,10x Viakal cleaning solution cleaners 
02-Aug-19,Housing & Community Services,Possessionclaim.Go,325.00, Legal Services & Fees ,Possession claim on line
02-Aug-19,Housing & Community Services,Possessionclaim.Go,325.00, Legal Services & Fees ,Possession claim on line
13-Aug-19,Housing & Community Services,Possessionclaim.Go,325.00, Legal Services & Fees ,possession claim on line
14-Aug-19,Housing & Community Services,Possessionclaim.Go,325.00, Legal Services & Fees ,possession claim on line
23-Aug-19,Housing & Community Services,Possessionclaim.Go,325.00, Legal Services & Fees ,possession claim on line
23-Aug-19,Housing & Community Services,Possessionclaim.Go,325.00, Legal Services & Fees ,possession claim on line
23-Aug-19,Housing & Community Services,Possessionclaim.Go,325.00, Legal Services & Fees ,Possession claim on line
23-Aug-19,Housing & Community Services,Possessionclaim.Go,325.00, Legal Services & Fees ,possession claim on line
26-Aug-19,Housing & Community Services,Possessionclaim.Go,325.00, Legal Services & Fees ,Possession claim on line
26-Aug-19,Housing & Community Services,Possessionclaim.Go,325.00, Legal Services & Fees ,possession claim on line
26-Aug-19,Housing & Community Services,Possessionclaim.Go,325.00, Legal Services & Fees ,possession claim on line
14-Aug-19,Housing & Community Services,Safe Solutions Safe4 Limi,19.50, Equipment / Furniture / Materials ,Disinfectant for dog cages
01-Aug-19,Housing & Community Services,Sainsburys Petrol,19.07, Equipment / Furniture / Materials ,2 x fuel cans of unleaded for small plant hire shop
07-Aug-19,Housing & Community Services,Sainsburys S/mkt,26.67, Miscellaneous Expenses ,2 tea pots Reydon House Kitchen
21-Aug-19,Housing & Community Services,Screwfix Direct Lt,16.66, HRA - Contract Maintenance ,Letterbox
05-Aug-19,Housing & Community Services,Staples.Co.Uk,197.10, Miscellaneous Expenses ,lockable storage cupboard for Stratford Crt 
01-Aug-19,Housing & Community Services,Tesco Pfs 3887,10.94, Equipment / Furniture / Materials ,"1x fuel can , 1x fuel can Unlead fuel"
08-Aug-19,Housing & Community Services,Timpson,5.62, Equipment / Furniture / Materials ,Key cut on request 
19-Aug-19,Housing & Community Services,Www Elmhurstenergy Co Uk,264.00, Employee Expenses ,DEA Convention 
09-Aug-19,Housing & Community Services,Www.Lampshoponline.Co.Uk,4.92, Cleaning Supplies ,Fluorescent lightbulbs for TIC
08-Aug-19,People & Governance,Amazon.Co.Uk,10.56, Miscellaneous Stock  - Purchases ,1 box of urgent non stocked envelopes for the print room.
21-Aug-19,People & Governance,Amazon.Co.Uk,47.09, Miscellaneous Stock  - Purchases ,A3 Laminating Pouches for print room use
19-Aug-19,People & Governance,Amazon.Co.Uk,54.07, Stationery , HP903 ink set x2
16-Aug-19,People & Governance,Amznmktplace,3.32, Equipment / Furniture / Materials ,Access key
12-Aug-19,People & Governance,Amznmktplace,71.62, Miscellaneous Stock  - Purchases ,A0 Size Foam Board for the Print room
12-Aug-19,People & Governance,Amznmktplace,57.07, Miscellaneous Stock  - Purchases ,Large thick foamex sheet for the print room
20-Aug-19,People & Governance,Amznmktplace,7.33, Miscellaneous Stock  - Purchases ,Badge clip hole punch for print room
13-Aug-19,People & Governance,Bms Imaging Ltd,28.00, Miscellaneous Functions & Events ,Photo prints for mayors portrait
28-Aug-19,People & Governance,Cipd Integra,163.00, Non Contracted_Professional Services ,CIPD Subscription Renewal fee
06-Aug-19,People & Governance,Colour Craft Direct,32.08, Miscellaneous Stock  - Purchases ,More Yellow Envelopes for Ed Concert letters
02-Aug-19,People & Governance,Eb *the Future Of Lamp,60.00, Training Expenses ,Attendance at course 24th Sept 
15-Aug-19,People & Governance,Facebk Ubhqnmjlw2,90.90, Advertising/Publicity ,Crafted Classique FB Ads
13-Aug-19,People & Governance,Mailchimp,436.87, Subscriptions - Service Related ,MailChimp
27-Aug-19,People & Governance,Mailchimp,206.58, Subscriptions - Service Related ,MailChimp account
08-Aug-19,People & Governance,Marks&spencer Plc,7.20, Miscellaneous Functions & Events ,cake/ milk for ABPorts
16-Aug-19,People & Governance,Marks&spencer Plc,15.80, Miscellaneous Functions & Events ,Luckhurst event afternoon tea
30-Aug-19,People & Governance,Marks&spencer Plc,22.20, Miscellaneous Functions & Events ,"Kersey's afternoon tea, sandwiches / cake"
28-Aug-19,People & Governance,Mf Frames Ltd,143.90, Miscellaneous Functions & Events ,Mayors portrait framed
22-Aug-19,People & Governance,Parcel2go_uk,24.46, Postage Costs ,Courier Charge for Ed Sheeran Parking Permits
01-Aug-19,People & Governance,Participant UK Ltd,280.00, Training Expenses ,British BIDS Course 
06-Aug-19,People & Governance,Signs For You Ltd,28.12, Printing Costs ,Crown Car Park Banner
13-Aug-19,People & Governance,Wilko Retail Limit,19.17, Computer Consumables and other Minor IT costs ,Canon pg 545xl 
14-Aug-19,People & Governance,Wilko Retail Limit,9.54, Miscellaneous Functions & Events ,cleaning products for parlour
26-Aug-19,People & Governance,Wp-Arts Marketing,55.00, Training Expenses ,AMA Training - Copywriting webinar
15-Aug-19,People & Governance,Www.Banneruk.Com,112.68, Computer Consumables and other Minor IT costs ,Canon ink- s/housing Hp inks  Holywel
15-Aug-19,People & Governance,Www.Banneruk.Com,273.94, Computer Consumables and other Minor IT costs ,Canon ink- s/housing Hp inks Holywel
28-Aug-19,People & Governance,Www.Banneruk.Com,54.30, Miscellaneous Stock  - Purchases ,A3 Laminating Pouches for Print Room use
21-Aug-19,People & Governance,Www.Ovendenpapers.,59.97, Miscellaneous Stock  - Purchases ,Large Format Paper x 1 Roll
21-Aug-19,People & Governance,Www.Ovendenpapers.,179.91, Miscellaneous Stock  - Purchases ,Large Format Paper x 3 Rolls for print room
08-Aug-19,People & Governance,Www.Paper.Co.Uk,59.72, Miscellaneous Stock  - Purchases ,Paper supply for the print room
16-Aug-19,People & Governance,Www.Paper.Co.Uk,177.13, Miscellaneous Stock  - Purchases ,Paper Supply for the Print room
21-Aug-19,People & Governance,Www.Paper.Co.Uk,173.31, Miscellaneous Stock  - Purchases ,Miscellaneous paper supply for the print room
